Cogmind - Beta 13 @@@ ROGUE MODE // 2024.05.05 @ 17:33:03 Player: Cwaftwer Result: Smashed by cave-in Performance ------------- Evolutions (1) 500 Regions Visited (6) 1200 Robots Destroyed (26) 130 Value Destroyed (588) 588 Prototype IDs (1) 20 Alien Tech Used (0) 0 Bonus (33) 33 TOTAL SCORE: 2471 Bonus ------- High Alert Combat Kills 19 Follower Combat Kills 14 Cogmind --------- Core Integrity 0/400 Matter 121/300 Energy 45/100 System Corruption 5% Temperature Cool (17) Movement Core (50) Location -8/Mines Parts ------- > --- POWER (1) -------- (None) > --- PROPULSION (2) --- (None) > --- UTILITY (4) ------ Propulsion Shielding (fused) > --- WEAPON (2) ------- (None) > --- INVENTORY (5) ---- Weight Redist. System Weight Redist. System Improved Light Cannon Flail Peak State ------------ > --- POWER ------------ Ion Engine > --- PROPULSION ------- (None) > --- UTILITY ---------- Weight Redist. System Transport Network Coupler Propulsion Shielding Light Armor Plating > --- WEAPON ----------- Makeshift Axe > --- INVENTORY -------- Weight Redist. System Weight Redist. System Heavy Particle Gun Improved Light Cannon [Rating: 11] Favorites ----------- Power Ion Engine Engine Ion Engine Propulsion None Utility Weight Redist. System Device Weight Redist. System Processor Transport Network Coupler Protection Propulsion Shielding Weapon Light Cannon Energy Gun Heavy Particle Gun Ballistic Gun Light Assault Rifle Ballistic Cannon Light Cannon Impact Weapon Flail Slashing Weapon Makeshift Axe Build | -11 -10 -10 -9 -9 -9 -8 ------- Run | Yrd Mat Min Mat Min Exi Min Slots Evolved 2 | . . . 2 . . . Power . | . . . . . . . Propulsion . | . . . . . . . Utility 2 | . . . 2 . . . Weapon . | . . . . . . . Parts Attached 34 | . 4 . 17 8 . 5 Power 6 | . 1 . 5 . . . Engine 6 | . 1 . 5 . . . Core . | . . . . . . . Reactor . | . . . . . . . Propulsion . | . . . . . . . Treads . | . . . . . . . Leg . | . . . . . . . Wheel . | . . . . . . . Hover . | . . . . . . . Flight . | . . . . . . . Utility 6 | . 2 . 4 . . . Device 2 | . 1 . 1 . . . Storage . | . . . . . . . Processor 1 | . 1 . . . . . Hackware . | . . . . . . . Protection 3 | . . . 3 . . . Artifact . | . . . . . . . Weapon 22 | . 1 . 8 8 . 5 Energy Gun 7 | . . . 1 3 . 3 Energy Cannon . | . . . . . . . Ballistic Gun 1 | . . . 1 . . . Ballistic Cannon 11 | . 1 . 6 3 . 1 Launcher . | . . . . . . . Special Weapon . | . . . . . . . Impact Weapon 1 | . . . . . . 1 Slashing Weapon 2 | . . . . 2 . . Piercing Weapon . | . . . . . . . Special Melee Weapon . | . . . . . . . Unidentified Prototypes 1 | . . . 1 . . . Parts Lost 9 | . . 1 3 1 . 4 Power 4 | . . 1 2 . . 1 Propulsion . | . . . . . . . Utility 4 | . . . 1 1 . 2 Weapon 1 | . . . . . . 1 Highest Loss Streak 4 | . . 1 2 1 . 4 To Critical Strikes . | . . . . . . . Average Slot Usage (%) 49 | . 44 47 57 55 44 46 Engine 9 | . 8 5 8 11 11 9 Device 10 | . 11 14 9 11 11 9 Processor 6 | . 11 14 11 5 . . Protection 14 | . . . 15 22 22 18 Ballistic Cannon 6 | . 12 14 10 1 . 2 Naked Turns 21 | . 21 . . . . . Heaviest Build 16 | . 6 6 15 16 9 16 Greatest Support 9 | 3 9 9 9 9 9 9 Greatest Overweight (x) 2 | . . . 1 1 . 2 Average Overweight (x) . | . . . . . . . Largest Inventory Capacity 5 | 5 5 5 5 5 5 5 Average Capacity 5 | 5 5 5 5 5 5 5 Most Carried 5 | . 1 5 5 5 5 5 Average Carried 3 | . . 1 4 4 5 4 Final Capacity 5 | 5 5 5 5 5 5 5 Final Carried 5 | . 1 5 5 5 5 4 Class Distribution -------------------- 95% | Mutant 4% | Scavenger-Mutant Dominant Class ---------------- Mutant | -10/Materials Mutant | -10/Mines Mutant | -9/Materials Mutant | -9/Mines Mutant | -9/Exiles Mutant | -8/Mines Resources | -11 -10 -10 -9 -9 -9 -8 ----------- Run | Yrd Mat Min Mat Min Exi Min Matter Collected 715 | 153 68 76 355 44 . 19 Remotely . | . . . . . . . Salvage Created 548 | . 64 34 341 28 . 81 Parts 43 | . 5 3 27 1 . 7 Haulers Intercepted 1 | . 1 . . . . . Recyclers Shooed . | . . . . . . . Parts Field Recycled . | . . . . . . . Retrieved Matter . | . . . . . . . Parts Self-Destructed . | . . . . . . . Prevented . | . . . . . . . Kills | -11 -10 -10 -9 -9 -9 -8 ------- Run | Yrd Mat Min Mat Min Exi Min Combat Hostiles Destroyed 26 | . . 3 13 3 . 7 Guns 5 | . . . 1 1 . 3 Cannons 20 | . . 3 12 2 . 3 Classes Destroyed 6 | . 2 1 2 1 . . Hauler 1 | . 1 . . . . . Operator 1 | . 1 . . . . . Swarmer 14 | . . 3 3 1 . 7 Grunt 6 | . . . 6 . . . Sentry 4 | . . . 4 . . . Assembled 2 | . . . . 2 . . Best Kill Streak 6 | . 1 2 6 1 . 4 Combat Bots Only 6 | . . 2 6 1 . 4 Max Kills in Single Turn 1 | . 1 1 1 1 . 1 Gunslinging . | . . . . . . . Exploded . | . . . . . . . Melee . | . . . . . . . Uniques/NPCs Destroyed . | . . . . . . . Combat | -11 -10 -10 -9 -9 -9 -8 -------- Run | Yrd Mat Min Mat Min Exi Min Hostile Shots Fired 157 | . 1 9 71 9 . 67 Missed 32 | . . 4 17 3 . 8 Damage Taken 1485 | . 6 79 703 121 . 576 Core 418 | . . 7 177 32 . 202 Absorbed by Shields . | . . . . . . . Regen/Repaired (Parts) 17 | . . . 17 . . . Core Remaining (%) 98 | 100 . 97 . . . . Volleys Fired 73 | . 6 12 27 6 . 22 Largest 2 | . 1 1 2 2 . 2 Hottest 94 | . 35 35 78 94 . 94 Shots Fired 122 | . 6 12 54 12 . 38 Gun 30 | . . . 2 6 . 22 Cannon 92 | . 6 12 52 6 . 16 Launcher . | . . . . . . . Special . | . . . . . . . Kinetic 94 | . 6 12 54 6 . 16 Thermal 28 | . . . . 6 . 22 Explosive . | . . . . . . . Electromagnetic . | . . . . . . . Robot Hit Streak 7 | . 1 2 7 6 . 5 Robot Miss Streak 8 | . 2 2 4 2 . 8 Penetration Max . | . . . . . . . Secondary Targets . | . . . . . . . Shots Hit Robots 62 | . 3 7 31 7 . 14 Core Hits 31 | . 2 3 16 4 . 6 Critical Kills . | . . . . . . . Critical Parts Destroyed . | . . . . . . . Critical Strikes 5 | . 1 1 2 . . 1 Blast 5 | . 1 1 2 . . 1 Melee Attacks 13 | . . . . 6 . 7 Impact 7 | . . . . . . 7 Slashing 6 | . . . . 6 . . Piercing . | . . . . . . . Sneak Attacks . | . . . . . . . Combat Hostiles . | . . . . . . . Follow-up Attacks . | . . . . . . . Damage Inflicted 1284 | . 50 122 670 140 . 302 Guns 180 | . . . 7 57 . 116 Cannons 1081 | . 50 122 663 83 . 163 Explosions . | . . . . . . . Melee 23 | . . . . . . 23 Ramming . | . . . . . . . Kinetic 1088 | . 50 122 670 83 . 163 Thermal 173 | . . . . 57 . 116 Explosive . | . . . . . . . Electromagnetic . | . . . . . . . Impact 23 | . . . . . . 23 Slashing . | . . . . . . . Piercing . | . . . . . . . Highest Corruption 3 | . . . . 2 2 3 Average Corruption 2 | . . . . 2 2 2 Corruption Purged . | . . . . . . . Corruption Blocked . | . . . . . . . Effects 7 | . . . . 3 1 3 Message Errors 1 | . . . . . . 1 Matter Fused 3 | . . . . 1 1 1 Energy Discharges 2 | . . . . 1 . 1 Parts Fused 1 | . . . . 1 . . Overload Shots . | . . . . . . . Overflow Damage 6 | . . . . . . 6 Projectiles 3 | . . . . . . 3 Explosions . | . . . . . . . Melee 3 | . . . . . . 3 Knockbacks 8 | . . . 7 1 . . Impact . | . . . . . . . Kinetic 7 | . . . 6 1 . . Secondary 1 | . . . 1 . . . Self-Inflicted Damage . | . . . . . . . Shots . | . . . . . . . Rammed . | . . . . . . . Targets Rammed . | . . . . . . . Kicked . | . . . . . . . Crushed . | . . . . . . . Highest Temperature 325 | . . 9 141 99 . 325 Average Temperature 104 | . . 5 73 45 . 164 Received Heat Transfer 306 | . . . 306 . . . Effects 4 | . . . . . . 4 Shutdowns 1 | . . . . . . 1 Interference 3 | . . . . . . 3 Siege Activations . | . . . . . . . Robots Corrupted . | . . . . . . . Combat Hostiles . | . . . . . . . Parts Fried . | . . . . . . . Impact Corruptions 1 | . . . . . . 1 Robots Melted . | . . . . . . . Combat Hostiles . | . . . . . . . Parts Melted . | . . . . . . . Heat Transferred 333 | . . . . 111 . 222 Parts Sabotaged . | . . . . . . . Parts Stolen . | . . . . . . . Parts Stripped . | . . . . . . . Power Chain Reactions . | . . . . . . . Alert | -11 -10 -10 -9 -9 -9 -8 ------- Run | Yrd Mat Min Mat Min Exi Min Peak Influence 441 | . 72 60 441 240 . 152 Initial 171 | . . . 23 171 . . Average 142 | . 9 30 316 171 . 45 Maximum Alert Level 2 | . . . 2 1 . . Low Security (%) 75 | 100 100 100 22 93 . 100 Level 1 9 | . . . 27 6 . . Level 2 15 | . . . 49 . . . Level 3 . | . . . . . . . Level 4 . | . . . . . . . Level 5 . | . . . . . . . High Security . | . . . . . . . Max Security . | . . . . . . . Squads Dispatched 1 | . 1 . . . . . Investigation 1 | . 1 . . . . . Extermination . | . . . . . . . Reinforcement . | . . . . . . . Assault . | . . . . . . . Garrison . | . . . . . . . Intercept . | . . . . . . . Searches Triggered . | . . . . . . . Construction Impeded . | . . . . . . . Haulers Reinforced . | . . . . . . . Active Scanning Responses . | . . . . . . . Cargo Convoy Interrupts . | . . . . . . . Stealth | -11 -10 -10 -9 -9 -9 -8 --------- Run | Yrd Mat Min Mat Min Exi Min Distress Signals 3 | . 1 . 1 . . 1 Communications Jammed . | . . . . . . . Distress Signals . | . . . . . . . Times Spotted 44 | . 6 6 17 5 . 10 Peak Tracking Total 12 | . 4 3 12 3 . 4 Tactical Retreats 4 | . 1 . 1 1 . 1 Traps | -11 -10 -10 -9 -9 -9 -8 ------- Run | Yrd Mat Min Mat Min Exi Min Traps Triggered . | . . . . . . . Indirectly . | . . . . . . . Trap Hack Attempts . | . . . . . . . Triggered . | . . . . . . . Disarmed . | . . . . . . . Reprogrammed . | . . . . . . . Reused . | . . . . . . . Traps Extracted . | . . . . . . . Installed . | . . . . . . . Triggered . | . . . . . . . Machines | -11 -10 -10 -9 -9 -9 -8 ---------- Run | Yrd Mat Min Mat Min Exi Min Machines Disabled 2 | . . . 2 . . . Max in Single Turn 1 | . . . 1 . . . Machines Repaired . | . . . . . . . Machines Dismantled . | . . . . . . . Machines Sabotaged . | . . . . . . . Overloaded Fab Kills . | . . . . . . . Hacking | -11 -10 -10 -9 -9 -9 -8 --------- Run | Yrd Mat Min Mat Min Exi Min Machines Accessed 9 | . 2 . 3 . 4 . Terminals 3 | . 2 . 1 . . . Fabricators . | . . . . . . . Repair Stations 1 | . . . 1 . . . Recycling Units . | . . . . . . . Scanalyzers 1 | . . . 1 . . . Garrison Access . | . . . . . . . Total Hacks 21 | . 4 . 13 . 4 . Successful 16 | . 2 . 10 . 4 . Failed 5 | . 2 . 3 . . . Catastrophic 2 | . 1 . 1 . . . Database Lockouts . | . . . . . . . Manual . | . . . . . . . Terminals 6 | . 4 . 2 . . . Fabricators . | . . . . . . . Repair Stations 3 | . . . 3 . . . Recycling Units . | . . . . . . . Scanalyzers 8 | . . . 8 . . . Garrison Access . | . . . . . . . Terminal Hacks 6 | . 2 . . . 4 . Record 4 | . . . . . 4 . Unreport Threat 1 | . 1 . . . . . Zone Layout 1 | . 1 . . . . . Fabricator Hacks . | . . . . . . . Repair Station Hacks 2 | . . . 2 . . . Scan Component 1 | . . . 1 . . . Repair 1 | . . . 1 . . . Recycling Unit Hacks . | . . . . . . . Scanalyzer 8 | . . . 8 . . . Insert Component 4 | . . . 4 . . . Analyze 4 | . . . 4 . . . Garrison Access Hacks . | . . . . . . . Unauthorized Hacks . | . . . . . . . Terminals . | . . . . . . . Fabricators . | . . . . . . . Repair Stations . | . . . . . . . Recycling Units . | . . . . . . . Scanalyzers . | . . . . . . . Garrison Access . | . . . . . . . Data Cores Recovered . | . . . . . . . Used . | . . . . . . . Hacking Detections 5 | . 2 . 3 . . . Full Trace Events 1 | . 1 . . . . . Feedback Events . | . . . . . . . Feedback Blocked . | . . . . . . . Robot Schematics Acquired . | . . . . . . . Robots Built . | . . . . . . . Authchips . | . . . . . . . Time . | . . . . . . . Total Robot Build Rating . | . . . . . . . Part Schematics Acquired 3 | . . . 3 . . . Parts Built . | . . . . . . . Authchips . | . . . . . . . Time . | . . . . . . . Total Part Build Rating . | . . . . . . . Parts Repaired 1 | . . . 1 . . . Time 32 | . . . 32 . . . Parts Recycled . | . . . . . . . Recycled Matter . | . . . . . . . Retrieved Matter . | . . . . . . . Retrieved Components . | . . . . . . . Parts Scanalyzed 3 | . . . 3 . . . Part Schematics Acquired 3 | . . . 3 . . . Parts Damaged . | . . . . . . . Bothacking | -11 -10 -10 -9 -9 -9 -8 ------------ Run | Yrd Mat Min Mat Min Exi Min Used RIF Installer . | . . . . . . . Robots Hacked . | . . . . . . . Non-combat . | . . . . . . . Combat . | . . . . . . . Robot Hacks Applied . | . . . . . . . Relay Couplers Released . | . . . . . . . Fabnet Peak Effective % . | . . . . . . . Robots Rewired . | . . . . . . . Allies Hacked . | . . . . . . . Hacks Repelled . | . . . . . . . Allies | -11 -10 -10 -9 -9 -9 -8 -------- Run | Yrd Mat Min Mat Min Exi Min Total Allies 2 | . . . . 2 . . Largest Group 2 | . . . . 2 . . Highest-Rated Group 46 | . . . . 46 . . Highest-Rated Ally 31 | . . . . 31 . . Total Orders . | . . . . . . . Ally Attacks 6 | . . . . 6 . . Total Damage 64 | . . . . 64 . . Kills 2 | . . . . 2 . . Allies Corrupted . | . . . . . . . Allies Melted . | . . . . . . . Intel | -11 -10 -10 -9 -9 -9 -8 ------- Run | Yrd Mat Min Mat Min Exi Min Robot Analysis Total . | . . . . . . . Derelict Logs Recovered 2 | . . . . 2 . . Drone Launches . | . . . . . . . Drone Recoveries . | . . . . . . . Exploration | -11 -10 -10 -9 -9 -9 -8 ------------- Run | Yrd Mat Min Mat Min Exi Min Turns Passed 1242 | 11 174 142 315 179 219 202 Spaces Moved 1561 | 21 249 195 276 180 439 201 Core 1561 | 21 249 195 276 180 439 201 Treads . | . . . . . . . Legs . | . . . . . . . Wheels . | . . . . . . . Hover . | . . . . . . . Flight . | . . . . . . . Fastest Speed 50 | 50 50 50 50 50 50 50 Average Speed 51 | 50 50 50 53 56 50 51 Slowest Speed 150 | 50 50 50 100 100 50 150 Overloaded Moves . | . . . . . . . Propulsion Burnouts . | . . . . . . . Robots Hopped . | . . . . . . . Cave-ins Triggered 2 | . . . . . . 2 Exploration Rate (%) 40 | 3 41 44 19 40 91 47 Regions Visited 6 Branch Regions 4 Pre-discovered Areas 1 | . . . . 1 . . Known Exits Taken . | . . . . . . . Unknown Exits Taken 6 | 1 1 1 1 1 1 . Scrap Searched . | . . . . . . . Spaces Dug 3 | . . . . . . 3 Terrain Destroyed 10 | . . . 2 1 . 7 Melee 3 | . . . . . . 3 Projectile 7 | . . . 2 1 . 4 AOE . | . . . . . . . Terrain Rammed . | . . . . . . . Walls Destroyed . | . . . . . . . Machines Disabled . | . . . . . . . Actions | -11 -10 -10 -9 -9 -9 -8 --------- Run | Yrd Mat Min Mat Min Exi Min Total 1868 | 20 291 227 397 242 438 253 Wait 128 | . 28 15 38 34 . 13 Move 1555 | 20 248 194 275 179 438 201 Hop . | . . . . . . . Pick Up 33 | . 5 5 21 1 . 1 Fast Attach . | . . . . . . . Attach 29 | . 4 . 14 7 . 4 Detach 14 | . . . 4 7 . 3 Swap 5 | . . . 3 1 . 1 Drop 18 | . . 1 15 1 . 1 Fire 73 | . 6 12 27 6 . 22 Melee 13 | . . . . 6 . 7 Ram . | . . . . . . . Kick . | . . . . . . . Crush . | . . . . . . . Escape Stasis . | . . . . . . . Rewire . | . . . . . . . Trap . | . . . . . . . Miscellaneous . | . . . . . . . Route ------- -11/Scrapyard -10/Materials -10/Mines -9/Materials -9/Mines -9/Exiles -8/Mines (discovered 1 exit: [*Mat]) History --------- Turn | Location | Event 4 | -11/Scrapyard | Discovered new exit (range 16) 12 | -11/Scrapyard | Entered Materials 167 | -10/Materials | Discovered new exit (range 7) 186 | -10/Materials | Entered Mines 201 | -10/Mines | Assembled infested the area 206 | -10/Mines | Assisted by a Guerilla fighting off Assembled 293 | -10/Mines | Discovered new exit (range 3) 316 | -10/Mines | Build established: Mutant 328 | -10/Mines | Entered Materials 328 | -9/Materials | Evolved 2 slots: Utility x2 584 | -9/Materials | Repaired Weight Redist. System 588 | -9/Materials | Discovered new exit (range 15) 643 | -9/Materials | Entered Mines 664 | -9/Mines | Learned Materials trap positions 675 | -9/Mines | A weapon hastily lodged in a ceiling crevice suddenly fell to the ground 718 | -9/Mines | Excavation squad dispatched 718 | -9/Mines | A large section of the Mines collapsed 769 | -9/Mines | Core integrity fell below 50% 797 | -9/Mines | Learned location of Zion (-6) 820 | -9/Mines | Deemed a non-threat by the Exiles lab entrance 820 | -9/Mines | Discovered new exit (range 5) 822 | -9/Mines | Entered Exiles 822 | -9/Exiles | Found Exiles lab abandoned 1034 | -9/Exiles | Discovered new exit (range 14) 1041 | -9/Exiles | Entered Mines 1054 | -8/Mines | Discovered new exit (range 8) 1207 | -8/Mines | Core integrity fell below 20% 1212 | -8/Mines | Crushed by falling debris 1244 | -8/Mines | Crushed by falling debris 1244 | -8/Mines | Smashed by cave-in Last Messages --------------- Acquired 6 matter. Overheating: System interference. Imp. Light Cannon temporarily disabled. Hvy. Particle Gun temporarily disabled. System corrupted: Matter fused (-10). The unstable cave ceiling collapses. Crushed by falling debris. Weight Redist. System destroyed. System corrupted by crushing effect (+1). Ion Engine destroyed. Destroyed Flight Unit. S-10 Pest system corrupted by crushing effect. S-10 Pest system terminally corrupted. S-10 Pest destroyed. R-06 Scavenger collects Flight Unit. Destroyed Lgt. Ion Engine. The unstable cave ceiling collapses. Crushed by falling debris. Hvy. Particle Gun destroyed. System corrupted by crushing effect (+2). Map ----- +----------------------------------------------------+ | | | | | | | | | | | | | | | ?????????????????????????????????????????????? | | ?????????????????????????????????????????????? | | ?????????????????????????????????????????????? | | ???????????????????????????##?###?##?????????? | | ??????????????????????????? ?????????? | | ???????????????????????????? ??????????? | | ???????????????????????????? ??????????? | | ??????????????????????###???? """ ???????????? | | ??????????????????????# ???? """ ???????????? | | ??????????????????????# #?????"""????????????? | | ??????????????????????# #????? ????????????? | | ??????????????????????# #?????#%#????????????? | | ??????????????????????# #?????#%#????????????? | | ??????????????????????# #?????#*#????????????? | | ????????????# ######### ####### #????????????? | | ????????????# % %rr%%[*=#????????????? | | ????????????####### #####%###"#=#????????????? | | ??????????????????# #???# s# ## #????????????? | | ??????????????????# #???#@##### #????????????? | | ???###????????????# #???#####?# #????????????? | | ??## ##???????????# #?????????# #????????????? | | ??# ##??????????# #?????????# #????????????? | | ??## ##????###### #?????????# #????????????? | | ???## ##???# #?????????# #????????????? | | ????## ###?# #### #?????????? ?????????????? | | ?????# ### #??# ##????????? ?????????????? | | ###### """ ## ## #?????????#?????????????? | | """ ##???????????????????????? | | """ ##????????????????????????? | | #### ##?????????????????????????? | | ???# ###??????????????????????????? | | #??## ## #????????????????????????????? | | ##??# ##### ????????????????????????? | | ##?## ##???# ###?##???????????????????????? | | #??####????# #????????????????????????????? | | #??????????? #????????????????????????????? | | #??????????? ????????????????????????????? | | ##??????????? ##???????????????????????????? | | ##???????????? #????????????????????????????? | | ?????????????? ????????????????????????????? | | ?????????????? ????????????????????????????? | | ?????????????? ????????????????????????????? | | ??????????????? ?????????????????????????????? | +----------------------------------------------------+ Best States ------------- Heat Dissipation 28 Energy Generation 10 Energy Capacity 250 Matter Stores 300 Matter Capacity 300 Sight Range 16 Terrain Scan Density 10 Additional Mass Support 6 Armor Coverage 150 Propulsion Shielding 33 Evasion (%) 50 Item Schematics ----------------- Weight Redist. System | -9/Materials | Scanalyzed Plasma Cutter | -9/Materials | Scanalyzed Propulsion Shielding | -9/Materials | Scanalyzed Robot Schematics ------------------ None Fabricated ------------ Nothing Alien Tech Used ----------------- None Achievements -------------- None Challenges ------------ None Game ------ Seed DeuteriumDecoyLeg Manual? 0 Play Time 00:21:15 Cumulative 39.6 hours Start 2024.05.05 @ 17:13:24 End 2024.05.05 @ 17:33:03 Sessions 1 Manual Loads 0 Difficulty Rogue Special Mode None Game No. 66 Rogue 65 Adventurer 1 Explorer 0 Win Type - Total 0 Types 0/0/0/0/0/0/0/0/0 Lore% 38 Gallery% 39 Achievement% 31 Wizard Run 0 Options --------- Layout 1 ASCII 0 Keyboard 0 Movement Mouse Keybinds 0 Fullscreen 1 Font 24/Smallcaps Map View 50x40 Zoom Use 0% Tactical HUD 0 Map Filters NONE Filters NONE Steam 1 RUN: 031cf2c8-9ad2-4058-8981-df95a4c00a2b